bitfinex/quotes_ETHUSD_20241204
["timestamp","ask_amount","ask_price","bid_price","bid_amount"]
[1733355230469,0.1633,3859.3,3856.5,3.0]
[1733355230642,0.1633,3858.1,3856.7,2.59286]
[1733355230847,0.1633,3858.1,3856.8,2.59276]
[1733355231162,0.40314206,3858.1,3856.8,2.59277]
[1733355231467,0.2406546,3858.0,3856.8,2.59279]
[1733355231655,0.1633,3858.1,3856.0,1.528]
[1733355231656,0.2406546,3857.9,3856.9,2.59271]
[1733355231856,0.2406546,3857.9,3856.5,3.0]
[1733355232055,0.2406546,3858.0,3856.6,3.3]
[1733355232279,0.2406546,3857.9,3856.9,2.59275]
[1733355232459,0.2406546,3857.8,3856.9,2.59275]
[1733355232660,0.2406546,3857.7,3857.0,2.59268]
[1733355232860,0.2406546,3858.0,3857.0,2.59268]
[1733355233056,0.2406546,3857.9,3856.8,2.59282]
[1733355233275,0.1633,3858.1,3856.0,1.528]
[1733355233276,0.1633,3857.7,3856.5,2.59296]
[1733355233477,0.2406546,3857.6,3856.6,3.0]
[1733355233660,0.2406546,3857.5,3856.5,2.59296]
[1733355233860,0.1633,3857.7,3856.2,0.02592563]
[1733355234060,0.1633,3857.7,3857.1,2.59261]
[1733355234061,0.24123832,3857.6,3857.1,2.59261]
[1733355234302,0.24123832,3857.5,3857.3,2.59246]
[1733355234516,0.1633,3857.7,3857.3,2.59246]
[1733355234798,0.1633,3857.7,3857.4,2.5924]
[1733355235187,0.1633,3857.7,3856.2,0.23078134]
[1733355235369,0.24152259,3857.6,3856.6,2.59294]
[1733355235578,0.1633,3857.7,3856.8,2.59279]
[1733355235579,0.24152259,3857.5,3856.8,2.59279]
[1733355235775,0.24152259,3857.4,3856.8,2.59276]
[1733355235978,0.1633,3857.7,3856.9,3.0]
[1733355236176,0.24169646,3857.6,3856.9,5.59274]
[1733355236479,0.1633,3857.7,3857.0,2.59267]
[1733355236480,0.24169646,3857.5,3857.0,2.59267]
[1733355236662,0.24169646,3857.4,3857.0,2.59267]
[1733355236998,0.1633,3857.7,3856.6,3.0]
[1733355237201,0.1633,3857.7,3855.1,2.59393]
[1733355237202,0.1633,3857.5,3855.6,1.634]
[1733355237514,0.24181132,3857.4,3856.2,2.59316]
[1733355237662,0.24181132,3857.3,3856.2,2.59316]
[1733355237997,0.24181132,3857.2,3856.2,2.59321]
[1733355238181,0.24181132,3857.1,3856.3,2.59309]
[1733355238511,0.24181132,3857.0,3856.1,2.59327]
[1733355238661,0.1633,3856.8,3856.2,5.59322]
[1733355239212,0.24197027,3856.7,3856.2,3.0]
[1733355239504,0.1633,3856.8,3856.3,2.59314]
[1733355239684,0.1633,3856.8,3856.4,2.59308]
[1733355240209,0.1633,3856.8,3856.1,3.0]
[1733355240504,0.1633,3856.8,3856.2,3.3]
[1733355240708,0.1633,3856.8,3856.0,3.0]
[1733355240920,0.24194593,3856.7,3856.1,3.0]
[1733355241282,0.1633,3856.8,3856.6,2.59291]
[1733355241465,1.0,3857.0,3856.6,2.59291]
[1733355241661,0.24192199,3856.9,3856.8,2.59282]
[1733355241909,1.0,3857.0,3856.9,2.59275]
[1733355242197,1.0,3857.0,3856.9,5.59275]
[1733355243194,1.0,3857.0,3856.9,2.59275]
[1733355243794,1.0,3857.0,3856.3,3.0]
[1733355244027,1.0,3857.0,3856.3,2.59309]
[1733355244329,1.0,3857.0,3855.6,1.655]
[1733355244330,0.24192638,3856.9,3855.6,1.655]
[1733355244537,1.0,3857.0,3856.1,2.59324]
[1733355244831,0.24191448,3856.9,3855.7,0.1655]
[1733355245033,1.0,3857.0,3855.4,2.5937]
[1733355245034,0.40521448,3856.8,3855.4,2.5937]
[1733355245327,0.24191448,3856.7,3855.1,1.6443]
[1733355245486,1.0,3857.0,3855.1,2.59395]
[1733355245487,0.24191448,3856.6,3855.1,2.59395]
[1733355245689,0.1633,3856.4,3854.2,1.6443]
[1733355246021,3.59272,3857.0,3854.3,0.423887]
[1733355246022,0.1633,3856.1,3854.3,0.423887]
[1733355246320,2.69294,3856.7,3854.8,2.59415]
[1733355246321,0.1633,3855.9,3854.8,2.59415]
[1733355246479,0.24191448,3855.8,3855.2,2.59388]
[1733355246683,0.1633,3855.9,3855.3,0.02593624]
[1733355246884,0.1633,3856.7,3856.6,2.59295]
[1733355247084,0.40514896,3856.7,3856.6,2.59295]
[1733355247315,0.24184896,3856.7,3856.6,2.59295]
[1733355247519,1.0,3857.0,3856.6,2.59295]
[1733355247727,1.0,3857.0,3855.8,0.02592721]
[1733355247728,1.0,3857.0,3856.8,2.59282]
[1733355247929,1.0,3857.0,3856.9,2.59275]
[1733355249022,1.0,3857.0,3856.4,3.0]
[1733355249209,1.0,3857.0,3856.4,2.59304]
[1733355249210,0.95,3857.0,3856.4,2.59304]
[1733355249517,0.95,3857.0,3856.1,3.0]
[1733355249518,0.95,3857.0,3856.9,2.59275]
[1733355250701,0.95,3857.0,3856.6,2.59291]
[1733355251096,0.95,3857.0,3856.9,2.59275]
[1733355253264,0.95,3857.0,3856.4,3.0]
[1733355253458,0.95,3857.0,3856.1,1.0735829]
[1733355253690,0.1633,3856.9,3856.0,3.0]
[1733355253857,0.1633,3856.9,3855.9,2.59342]
[1733355254193,0.1633,3856.9,3855.4,1.59807462]
[1733355254194,0.1633,3856.9,3855.5,1.0735829]
[1733355254548,0.1633,3856.9,3855.2,1.0735829]
[1733355254549,0.24187402,3856.8,3855.2,1.0735829]
[1733355254750,0.24187882,3856.7,3855.5,2.59369]
[1733355254955,0.1633,3856.9,3855.7,2.59356]
[1733355255151,0.1633,3856.9,3856.4,2.59307]
[1733355255595,0.1633,3856.9,3856.5,2.59302]
[1733355256599,0.1633,3856.9,3855.9,3.0]
[1733355256766,0.1633,3856.9,3856.0,2.59336]
[1733355256968,0.1633,3856.9,3856.2,2.5932]
[1733355257410,0.1633,3856.9,3856.8,2.59282]
[1733355257692,0.95,3857.0,3856.6,2.59292]
[1733355257850,0.95,3857.0,3856.9,2.59275]
[1733355259060,0.9415764,3857.0,3856.9,3.111318]
[1733355259264,0.9415764,3857.0,3856.9,6.111318]
[1733355260001,0.9415764,3857.0,3856.9,5.59275]
[1733355261805,0.8915764,3857.0,3856.9,5.59275]
[1733355262364,0.8915764,3857.0,3856.9,6.14275]
[1733355262568,6.4e-06,3857.0,3856.9,6.14275]
[1733355262803,6.4e-06,3857.0,3856.9,7.2163329]
[1733355263006,6.4e-06,3857.0,3856.9,11.72062383]
[1733355263208,6.4e-06,3857.0,3856.9,11.7188192]
[1733355263419,6.4e-06,3857.0,3856.9,10.08835038]
[1733355263584,6.4e-06,3857.0,3856.9,5.59275]
[1733355265403,6.4e-06,3857.0,3856.9,2.59275]
[1733355265802,6.4e-06,3857.0,3856.4,1.08154815]
[1733355266062,6.4e-06,3857.0,3856.5,2.59302]
[1733355266222,6.4e-06,3857.0,3856.6,2.59295]
[1733355266710,6.4e-06,3857.0,3855.9,3.08650644]
[1733355267019,6.4e-06,3857.0,3856.4,2.59308]
[1733355267305,0.1633,3856.9,3856.0,0.73018669]
[1733355267514,0.1633,3856.9,3856.4,2.59306]
[1733355267699,0.1633,3856.9,3856.0,1.81173484]
[1733355267700,0.1633,3856.9,3856.0,4.40509484]
[1733355267897,0.1633,3856.9,3856.1,0.76246053]
[1733355268214,0.1633,3856.9,3856.6,2.59295]
[1733355269408,0.1633,3856.9,3856.0,6.67485815]
[1733355269711,0.1633,3856.9,3856.5,2.593]
[1733355269919,0.1633,3856.9,3856.0,6.67485815]
[1733355270073,0.1633,3856.9,3856.0,1.08154815]
[1733355270269,0.1633,3856.9,3855.6,1.08154815]
[1733355270506,0.1633,3856.9,3855.9,2.59341]
[1733355270717,0.1633,3856.9,3855.4,2.60864815]
[1733355270879,0.1633,3856.9,3855.9,2.59341]
[1733355271077,0.1633,3856.9,3856.0,2.59334]
[1733355271275,0.1633,3856.9,3855.9,0.259341]
[1733355271691,0.1633,3856.9,3856.1,2.59323]
[1733355271887,0.1633,3856.9,3855.9,2.852761]
[1733355272115,0.1633,3856.9,3855.7,3.0]
[1733355272414,6.4e-06,3857.0,3854.9,1.08154815]
[1733355272415,0.1633,3856.0,3854.9,1.08154815]
[1733355272619,0.1633,3856.0,3854.8,2.59416]
[1733355272620,2.75666,3856.0,3854.8,2.59416]
[1733355272777,2.75666,3856.0,3854.6,2.59429]
[1733355272778,0.40531488,3856.0,3854.6,2.59429]
[1733355272978,0.1633,3855.6,3854.6,2.59429]
[1733355273415,2.75694,3855.6,3854.2,2.59457]
[1733355273626,2.75694,3855.6,3854.3,0.78926786]
[1733355273810,2.59333,3856.1,3854.0,1.08154815]
[1733355273811,2.75713,3855.3,3854.0,1.08154815]
[1733355274015,2.75713,3855.3,3853.9,2.59471]
[1733355274016,2.59391,3855.2,3853.9,2.59471]
[1733355274322,0.1633,3855.3,3853.8,2.60024815]
[1733355274323,0.1633,3855.3,3853.8,1.5187]
[1733355274539,0.1633,3855.3,3853.9,2.59477]
[1733355274840,0.1633,3855.3,3854.0,0.41394109]
[1733355275335,0.1633,3855.3,3854.0,3.00864109]
[1733355275523,0.1633,3855.3,3854.1,0.02593981]
[1733355275697,0.1633,3855.3,3854.2,2.59452]
[1733355275899,0.1633,3855.3,3854.3,3.0]
[1733355276133,0.1633,3855.3,3854.0,0.41394109]
[1733355276134,2.75713,3855.3,3854.1,3.0]
[1733355276332,2.59396,3855.2,3854.1,3.0]
[1733355276535,0.55,3855.6,3853.5,1.08154815]
[1733355276743,0.55,3855.6,3853.1,2.16254729]
[1733355276744,0.1633,3854.8,3853.9,2.59474]
[1733355276976,0.1633,3854.8,3854.0,2.59469]
[1733355277173,0.1633,3854.8,3854.1,0.02594284]
[1733355277361,0.1633,3854.8,3854.1,2.59462]
[1733355277652,0.1633,3854.8,3854.6,2.59429]
[1733355277853,0.1633,3854.8,3854.0,1.6262]
[1733355278057,0.1633,3854.8,3854.7,2.59423]
[1733355278269,4.19459224,3856.3,3855.1,2.59396]
[1733355278270,0.1633,3856.0,3855.1,2.59396]
[1733355278429,0.1633,3856.0,3855.3,2.59379]
[1733355278631,0.1633,3856.0,3855.0,2.59402]
[1733355278977,0.1633,3856.0,3855.5,2.59368]
[1733355279155,0.1633,3856.0,3855.1,2.59396]
[1733355279330,0.1633,3856.0,3854.3,3.0]
[1733355279533,2.75667,3856.0,3854.8,2.5941]
[1733355280077,2.75667,3856.0,3854.3,5.59446]
[1733355280078,0.1633,3855.7,3854.6,2.59429]
[1733355280232,0.1633,3855.7,3854.1,3.0]
[1733355280430,0.1633,3855.7,3854.8,2.5941]
[1733355280855,0.1633,3855.7,3854.3,3.0]
[1733355281058,0.1633,3855.7,3854.7,3.0]
[1733355281308,0.1633,3855.7,3854.8,2.59412]
[1733355281504,0.1633,3855.7,3854.7,2.59422]
[1733355282124,0.1633,3855.7,3854.5,2.59436]
[1733355282276,0.1633,3855.7,3854.6,2.5943]
[1733355282492,0.1633,3855.7,3854.6,2.59424]
[1733355282699,2.75691,3855.7,3854.0,1.6262]
[1733355282899,2.75691,3855.7,3854.1,0.16262]
[1733355283137,2.59329,3856.2,3854.1,2.59457]
[1733355283138,0.1633,3855.4,3854.1,2.59457]
[1733355283342,0.1633,3855.4,3854.2,3.0]
[1733355283499,2.75709,3855.4,3854.2,5.59456]
[1733355283704,2.75709,3855.4,3853.9,3.0]
[1733355283915,2.75709,3855.4,3854.2,2.59451]
[1733355284124,2.75709,3855.4,3854.3,2.59448]
[1733355284408,0.1633,3855.4,3854.4,2.59441]
[1733355284607,0.1633,3855.4,3854.4,2.59437]
[1733355285017,0.1633,3855.4,3853.8,3.0]
[1733355285348,0.1633,3855.5,3853.9,3.0]
[1733355285653,2.59388,3855.3,3854.0,2.59464]
[1733355285835,0.1633,3855.2,3854.0,2.59464]
[1733355286019,2.75724,3855.2,3854.1,2.59462]
[1733355286421,2.75724,3855.2,3853.9,2.59477]
[1733355286422,2.59397,3855.1,3853.9,2.59477]
[1733355287006,0.1633,3855.0,3854.1,2.59463]
[1733355287513,0.1633,3855.0,3853.8,2.59478]
[1733355287821,0.1633,3854.9,3853.8,2.59478]
[1733355288035,2.7574,3854.9,3853.8,2.59478]
[1733355288256,0.1633,3854.9,3853.8,2.59477]
[1733355288737,0.1633,3854.5,3853.5,2.59503]
[1733355288919,0.1633,3854.5,3853.0,2.59533]
[1733355289124,2.75768,3854.5,3853.4,2.5951]
[1733355289529,0.1633,3854.3,3853.2,2.59524]
[1733355289754,0.1633,3854.2,3852.3,2.62179735]
[1733355289923,0.1633,3854.2,3852.4,0.41366974]
[1733355290123,0.1633,3854.2,3853.1,2.59529]
[1733355290338,2.75787,3854.2,3853.1,2.59529]
[1733355290823,0.1633,3854.2,3853.1,2.59524]
[1733355291157,0.1633,3854.2,3853.2,2.59524]
[1733355291351,0.1633,3854.2,3853.3,2.59517]
[1733355291568,0.1633,3854.1,3852.6,2.59559]
[1733355291718,0.1633,3854.1,3853.4,2.5951]
[1733355291918,0.1633,3854.1,3853.1,2.59524]
[1733355292466,0.1633,3854.1,3853.3,2.59517]
[1733355292650,0.1633,3854.1,3852.8,5.59551]
[1733355292651,0.1633,3854.1,3853.4,2.5951]
[1733355292836,0.1633,3854.1,3853.5,2.62092883]
[1733355293036,0.1633,3854.1,3853.6,2.59491]
[1733355293283,0.1633,3854.1,3853.5,2.59503]
[1733355293448,0.1633,3854.1,3853.8,2.5948]
[1733355294072,0.1633,3854.1,3853.1,3.0]
[1733355294381,0.1633,3854.1,3853.5,2.59499]
[1733355294887,0.1633,3854.1,3853.6,2.59495]
[1733355295174,0.1633,3854.1,3853.1,5.59526]
[1733355295175,0.1633,3854.1,3853.4,2.5951]
[1733355295394,0.1633,3854.1,3853.1,3.0]
[1733355295675,0.1633,3854.1,3853.3,3.0]
[1733355295889,0.1633,3854.1,3852.7,0.30092597]
[1733355296211,0.1633,3854.1,3852.8,0.5896626]
[1733355296370,0.1633,3854.1,3853.4,3.0]
[1733355296672,0.1633,3854.1,3853.1,3.0]
[1733355296849,0.1633,3854.1,3853.4,2.5951]
[1733355297638,0.1633,3854.1,3851.8,1.5159]
[1733355297837,0.2,3854.5,3852.5,2.5957]
[1733355297838,0.1633,3853.5,3852.5,2.5957]
[1733355298044,0.1633,3853.5,3851.9,0.20455457]
[1733355298281,0.1633,3853.3,3852.1,2.59592]
[1733355298581,0.1633,3853.3,3851.2,5.19318]
[1733355298875,0.1633,3853.3,3851.3,2.59652]
[1733355299173,0.1633,3853.3,3851.4,0.28935748]
[1733355299373,0.4825948,3853.5,3851.1,0.27109876]
[1733355299374,0.1633,3852.9,3851.1,0.27109876]
[1733355299783,0.1633,3852.7,3851.6,2.59626]
[1733355299993,0.1633,3852.6,3850.4,2.86806727]
[1733355300148,0.1633,3852.5,3851.1,2.59666]
[1733355300349,0.1633,3852.5,3851.2,0.259666]
[1733355300549,0.1633,3852.5,3851.4,2.59645]
[1733355300777,0.1633,3852.4,3850.3,0.5297364]
[1733355300995,0.1633,3852.4,3852.0,2.59604]
[1733355301199,0.1633,3852.4,3851.1,2.5966]
[1733355301486,0.24142041,3852.5,3850.6,2.59699]
[1733355301686,0.1633,3852.4,3850.8,2.59686]
[1733355301988,0.1633,3852.4,3851.9,2.59612]
[1733355302180,0.1633,3852.4,3851.9,2.59611]
[1733355302548,0.1633,3852.4,3850.8,2.59686]
[1733355302549,0.1633,3852.4,3851.3,0.5170804]
[1733355302746,0.1633,3852.9,3852.8,2.59551]
[1733355302949,0.1633,3852.9,3852.5,2.59565]
[1733355303733,0.1633,3852.9,3852.0,2.59599]
[1733355303866,0.1633,3852.9,3852.3,2.59585]
[1733355304065,0.1633,3852.9,3852.6,2.59562]
[1733355304380,0.24116902,3853.0,3852.2,2.59591]
[1733355304381,0.24116902,3853.0,3852.8,2.59551]
[1733355304552,9.02e-06,3853.0,3852.9,5.62139264]
[1733355304755,9.02e-06,3853.0,3852.9,6.60907052]
[1733355304950,9.02e-06,3853.0,3852.9,6.58312026]
[1733355306150,0.1633,3856.0,3852.9,4.53768026]
[1733355306389,0.1633,3855.5,3854.7,2.59418]
[1733355306597,0.1633,3855.5,3853.8,2.59484]
[1733355306598,0.1633,3855.5,3855.0,2.59401]
[1733355306751,0.16092066,3855.5,3855.0,2.59401]
[1733355307559,0.16092066,3855.5,3854.3,3.0]
[1733355307755,0.16092066,3855.5,3854.3,3.30259399]
[1733355308094,2.59383,3855.3,3853.7,2.59488]
[1733355308261,0.55,3855.9,3854.1,3.0]
[1733355308451,2.59389,3855.3,3853.9,3.0]
[1733355308652,0.55,3855.9,3853.5,2.59504]
[1733355308855,8.4549061,3856.3,3853.5,2.59504]
[1733355308856,0.55,3856.0,3854.1,2.59462]
[1733355309299,0.5257413,3855.8,3854.1,2.59462]
[1733355309798,0.1609,3855.7,3854.1,2.59462]
[1733355309999,0.1609,3855.7,3853.6,1.5846]
[1733355310198,2.59395,3855.2,3853.4,3.0]
[1733355310496,0.1609,3855.1,3853.4,3.0]
[1733355311396,0.1609,3855.1,3853.6,3.0]
[1733355311751,0.1609,3855.1,3853.5,2.89502]
[1733355311752,0.1609,3855.1,3853.5,0.3]
[1733355311953,0.1609,3855.1,3853.7,1.5239]
[1733355312190,0.1609,3855.1,3854.4,2.59443]
[1733355312392,0.1609,3856.4,3854.7,2.5942]
[1733355312600,0.1609,3856.4,3854.6,3.0]
[1733355312782,0.1609,3856.2,3854.6,3.0]
[1733355312985,0.1609,3856.2,3854.1,1.5273]
[1733355312986,0.1609,3855.7,3854.1,4.5273]
[1733355313169,2.59377,3855.4,3853.6,1.5157]
[1733355313499,0.1609,3855.6,3853.3,3.0]
[1733355313500,0.1609,3855.0,3853.3,3.0]
[1733355313807,0.1609,3855.0,3853.6,0.33]
[1733355314192,0.1609,3855.0,3853.3,3.0]
[1733355314560,3.11438153,3855.6,3852.5,2.59569]
[1733355314561,2.59438,3854.5,3852.5,2.59569]
[1733355314762,2.59458,3854.2,3852.3,4.13894]
[1733355314960,0.1609,3854.4,3852.4,0.4698539]
[1733355315181,0.1609,3854.4,3852.3,1.5431]
[1733355315396,6.0616961,3855.1,3852.3,1.5431]
[1733355315397,3.14423,3854.7,3852.3,1.5431]
[1733355315603,0.55,3854.3,3852.3,1.5431]
[1733355315817,2.59513,3853.4,3851.9,1.5292]
[1733355316019,0.1609,3853.5,3851.9,1.5292]
[1733355316020,2.5952,3853.3,3851.9,1.5292]
[1733355316322,2.5952,3853.3,3852.0,0.15292]
[1733355316472,0.1609,3852.9,3851.4,1.5292]
[1733355316673,2.59553,3852.8,3851.4,1.5292]
[1733355317211,0.1609,3852.9,3851.0,1.5248]
[1733355317420,2.59586,3852.3,3850.5,2.59705]
[1733355317587,0.1609,3852.2,3850.6,1.92304501]
[1733355317793,2.59598,3852.1,3850.6,1.92304501]
[1733355318112,0.1609,3852.2,3850.2,1.08206356]
[1733355318113,0.1609,3852.2,3850.2,1.6304]
[1733355318312,0.1609,3851.4,3850.1,0.75]
[1733355319614,2.59673,3851.0,3850.1,0.75]
[1733355319810,0.1609,3851.4,3850.1,0.75]
[1733355319811,2.5966,3851.2,3850.1,0.75]
[1733355320147,2.59676,3851.0,3850.1,0.75]
[1733355320296,2.75736,3851.4,3850.1,0.75]
[1733355320493,2.59684,3850.9,3850.1,0.75]
[1733355320744,2.59667,3851.1,3850.1,0.75]
[1733355320897,0.1609,3851.4,3850.1,0.75]
[1733355320898,2.59653,3851.3,3850.1,0.75]
[1733355321237,0.1609,3851.4,3850.1,0.98804]
[1733355321238,2.5966,3851.2,3850.1,0.98804]
[1733355321393,2.59667,3851.1,3850.1,0.98804]
[1733355321998,0.1609,3851.4,3850.1,0.75]
[1733355322199,2.59693,3850.7,3850.1,0.75]
[1733355322631,2.59705,3850.6,3850.1,0.75]
[1733355323295,0.55,3851.3,3850.1,0.75]
[1733355323495,2.75704,3851.9,3850.4,3.0]
[1733355323739,2.59646,3851.4,3850.5,0.71299624]
[1733355323946,0.1609,3851.9,3850.1,0.75]
[1733355324233,2.59656,3851.3,3850.1,0.75]
[1733355324438,0.1609,3850.8,3850.1,0.75]
[1733355325134,2.5972,3850.3,3850.1,0.75]
[1733355325449,0.1609,3850.2,3850.1,0.75]
[1733355325800,2.5977,3849.6,3848.3,1.565]
[1733355326146,2.59733,3850.1,3847.6,2.599]
[1733355326147,2.59808,3849.0,3847.6,2.599]
[1733355326436,2.75898,3849.0,3847.6,2.599]
[1733355326562,2.75898,3849.0,3847.3,1.565]
[1733355326563,0.1609,3849.0,3847.3,1.565]
[1733355326762,0.1609,3849.0,3847.3,1.7215]
[1733355326763,2.5985,3848.4,3847.3,1.7215]
[1733355327067,2.59828,3848.7,3847.3,1.7215]
[1733355327273,0.1609,3849.0,3847.3,1.7215]
[1733355327422,2.59834,3848.7,3847.3,1.7215]
[1733355327622,2.59834,3848.7,3847.4,0.432077]
[1733355327862,0.1609,3849.0,3847.4,0.432077]
[1733355328040,2.59848,3848.5,3847.3,1.7215]
[1733355328863,2.59826,3848.8,3847.3,1.7215]
[1733355329027,0.1609,3849.0,3847.3,1.7215]
[1733355329028,0.1609,3849.0,3847.6,2.59901]
[1733355329366,0.1609,3849.0,3847.3,1.7215]
[1733355329367,2.59864,3848.2,3847.3,4.565]
[1733355329572,0.1609,3848.0,3846.8,1.6588]
[1733355329861,0.1609,3848.0,3846.8,1.82468]
[1733355330074,2.59862,3848.2,3846.8,1.82468]
[1733355330289,0.1609,3848.5,3846.8,1.82468]
[1733355331035,0.55,3848.4,3846.8,1.6588]
[1733355331238,0.55,3848.4,3846.4,2.59981]
[1733355331239,2.59883,3847.9,3846.4,2.59981]
[1733355331439,2.59895,3847.7,3846.2,1.5334]
[1733355331704,0.55,3848.2,3846.2,1.5334]
[1733355331705,2.59922,3847.3,3846.2,1.5334]
[1733355331853,0.1609,3847.3,3846.2,1.5334]
[1733355332037,2.59938,3847.1,3846.2,1.5334]
[1733355332243,0.1609,3847.3,3846.2,1.5334]
[1733355332444,2.59937,3847.1,3845.6,1.6177]
[1733355332655,0.1609,3847.3,3845.7,0.16177]
[1733355332840,5.8616961,3848.3,3846.3,2.59983]
[1733355332841,2.75983,3847.8,3846.3,2.59983]
[1733355333081,2.59902,3847.6,3846.1,3.0]
[1733355333377,0.1609,3847.8,3846.1,3.0]
[1733355333378,2.59925,3847.3,3846.1,0.560004]
[1733355333682,3.27576553,3847.8,3845.9,2.60014]
[1733355333843,2.59909,3847.5,3846.0,3.0]
[1733355334185,0.2,3848.4,3845.7,0.16177]
[1733355334186,2.59785,3849.4,3846.6,1.5025]
[1733355334354,0.1609,3848.6,3846.7,0.02599179]
[1733355334539,0.1609,3848.6,3847.3,2.59918]
[1733355334742,2.59816,3848.9,3848.0,2.59874]
[1733355334743,0.52964405,3848.9,3848.0,2.59874]
[1733355334941,0.1609,3849.2,3848.0,2.59874]
[1733355335173,0.1609,3849.2,3847.5,1.5025]
[1733355335379,0.1609,3849.9,3847.7,2.59891]
[1733355335692,0.1609,3849.9,3847.5,1.5025]
[1733355335871,2.59764,3849.7,3848.2,2.59855]
[1733355336073,0.1609,3849.9,3847.6,0.02598472]
[1733355336074,0.1609,3849.9,3847.7,1.5848]
[1733355336239,0.1609,3849.9,3848.6,2.59833]
[1733355336445,0.1609,3849.9,3848.9,2.59814]
[1733355336646,0.1609,3849.9,3848.7,1.5848]
[1733355337076,0.1609,3849.9,3848.9,2.59814]
[1733355337452,0.1609,3849.9,3848.7,1.5848]
[1733355337804,2.75838,3849.9,3848.5,2.59838]
[1733355338083,0.1609,3849.9,3848.3,1.5256]
[1733355338270,0.1609,3849.9,3847.7,4.5426]
[1733355338271,3.14753,3849.8,3847.7,4.5426]
[1733355338472,2.59794,3849.2,3847.8,0.714155]
[1733355338712,2.59809,3849.0,3847.8,0.714155]
[1733355338980,2.59821,3848.8,3847.4,2.59913]
[1733355339847,0.55,3849.0,3847.2,1.5426]
[1733355340052,0.1609,3849.1,3847.3,0.15426]
[1733355340286,2.59835,3848.6,3847.3,3.0]
[1733355340466,2.75895,3849.1,3847.2,4.14188]
[1733355340467,0.1609,3849.1,3847.2,1.5426]
[1733355340783,3.1609,3849.1,3847.2,1.5426]
[1733355340985,0.1609,3849.1,3847.4,2.59915]
[1733355341197,0.1609,3849.1,3847.5,3.0]
[1733355341354,0.1609,3849.1,3847.4,3.0]
[1733355341578,0.1609,3849.1,3848.2,2.59855]
[1733355341906,5.59761,3849.7,3848.4,1.6535]
[1733355342114,0.1609,3849.9,3848.7,2.59827]
[1733355342316,0.1609,3849.9,3848.5,0.02598222]
[1733355342612,0.1609,3849.9,3848.8,2.59819]
[1733355342974,0.1609,3849.9,3848.4,1.6535]
[1733355343211,2.59782,3849.4,3848.0,3.0]
[1733355343416,0.1609,3849.8,3847.7,1.6002]
[1733355343417,2.59767,3849.6,3848.3,2.59854]
[1733355343577,2.59767,3849.6,3847.7,1.6002]
[1733355343578,2.59787,3849.4,3847.7,1.6002]
[1733355343778,2.59787,3849.4,3848.1,2.59863]
[1733355344087,0.1609,3849.8,3847.8,3.719922]
[1733355344290,0.1609,3849.8,3848.6,2.59833]
[1733355344473,0.1609,3849.7,3847.2,0.3033365]
[1733355344812,0.1609,3847.8,3847.2,0.3033365]
[1733355344973,0.1609,3847.8,3845.9,1.5742]
[1733355345169,0.1609,3847.8,3846.0,0.417442]
[1733355345374,2.59908,3847.6,3846.1,2.60003]
[1733355345573,2.0098,3847.8,3846.1,2.60003]
[1733355345793,0.55,3847.7,3846.1,2.60003]
[1733355346188,2.59923,3847.3,3845.9,4.17436]
[1733355346418,0.23988394,3847.2,3845.5,1.6463]
[1733355346622,0.55,3847.7,3845.6,0.16463]
[1733355346623,0.55,3847.1,3845.6,0.16463]
[1733355346790,2.59923,3847.3,3845.9,2.6001]
[1733355346985,0.23988394,3847.2,3845.9,2.6001]
[1733355347187,0.23988394,3847.2,3845.6,0.16463]
[1733355347188,0.23988394,3847.2,3845.6,2.76494]
[1733355347387,2.59957,3846.8,3845.3,2.60051]
[1733355347589,2.59959,3846.8,3845.4,2.60047]
[1733355347879,2.59959,3846.8,3845.1,4.12249]
[1733355347880,2.59963,3846.7,3845.1,4.12249]
[1733355348092,2.59963,3846.7,3845.5,2.60043]
[1733355348510,0.13558743,3847.3,3845.6,3.0]
[1733355348819,0.13558743,3847.3,3843.8,0.2]
[1733355348820,0.13558743,3847.3,3847.2,2.59929]
[1733355349180,2.59868,3848.1,3846.9,2.59949]
[1733355349512,2.59868,3848.1,3846.7,3.0]
[1733355349513,2.59889,3847.8,3846.6,2.59967]
[1733355349912,0.24029144,3848.0,3846.2,4.599]
[1733355350137,2.83876144,3848.5,3846.3,0.48589253]
[1733355350275,0.24029144,3847.9,3847.5,2.59908]
[1733355350475,2.59859,3848.3,3847.1,2.59935]
[1733355350674,2.59859,3848.3,3846.2,4.599]
[1733355350675,0.24029144,3848.5,3847.2,0.01690087]
[1733355351015,2.59855,3848.3,3847.2,0.01690087]
[1733355351176,0.24029144,3848.2,3847.2,0.01690087]
[1733355351505,0.13554163,3848.4,3847.2,0.01690087]
[1733355351826,0.24074382,3848.3,3847.2,2.61618087]
[1733355351983,0.24074382,3848.2,3847.2,0.01690087]
[1733355352184,0.24074382,3848.1,3847.3,2.5992]
[1733355352404,0.24074382,3848.0,3847.2,0.01690087]
[1733355352706,0.24074382,3847.9,3847.2,0.01690087]
[1733355352922,0.24074382,3847.8,3847.2,0.01690087]
[1733355353074,0.24074382,3847.7,3847.2,0.01690087]
[1733355353278,0.13554163,3848.4,3847.2,0.01690087]
[1733355353479,2.59869,3848.1,3847.2,0.01690087]
[1733355353682,0.24100004,3848.0,3847.2,0.01690087]
[1733355353929,0.24100004,3847.9,3847.2,0.01690087]
[1733355354128,0.24100004,3847.8,3847.2,0.01690087]
[1733355354283,0.24100004,3847.7,3847.2,0.01690087]
[1733355354482,0.55,3848.3,3847.2,0.01690087]
[1733355354483,0.55,3848.3,3847.2,2.61615087]